[Event "*** Titled Tuesday Blitz"]
[Site "Chess.com"]
[Date "2020.05.19"]
[Round "1"]
[White "MirMan90"]
[Black "Zarikovs1999"]
[Result "1-0"]
[WhiteElo "2751"]
[BlackElo "2400"]
[TimeControl "180+1"]
[EndTime "12:08:13 PDT"]
[Termination "MirMan90 won on time"]

1. e4 {[%clk 0:03:00.6]} 1... c5 {[%clk 0:02:50.5]} 2. Nf3 {[%clk 0:03:00.5]}
2... Nf6 {[%clk 0:02:49.4]} 3. e5 {[%clk 0:02:59.8]} 3... Nd5 {[%clk 0:02:46.7]}
4. Nc3 {[%clk 0:03:00.4]} 4... e6 {[%clk 0:02:46.7]} 5. Nxd5 {[%clk 0:02:56.9]}
5... exd5 {[%clk 0:02:47.6]} 6. d4 {[%clk 0:02:57.1]} 6... Nc6 {[%clk
0:02:45.9]} 7. dxc5 {[%clk 0:02:55.4]} 7... Bxc5 {[%clk 0:02:46.8]} 8. Bd3
{[%clk 0:02:54.1]} 8... d6 {[%clk 0:02:45.3]} 9. exd6 {[%clk 0:02:53.8]} 9...
Bxd6 {[%clk 0:02:46.2]} 10. O-O {[%clk 0:02:53.6]} 10... h6 {[%clk 0:02:29.3]}
11. h3 {[%clk 0:02:50.3]} 11... O-O {[%clk 0:02:28.7]} 12. Be3 {[%clk 0:02:48]}
12... Qf6 {[%clk 0:02:25.4]} 13. c3 {[%clk 0:02:47.5]} 13... Ne5 {[%clk
0:02:20.8]} 14. Nd4 {[%clk 0:02:38.4]} 14... Nxd3 {[%clk 0:02:19.1]} 15. Qxd3
{[%clk 0:02:38]} 15... Bd7 {[%clk 0:02:19.3]} 16. Rfe1 {[%clk 0:02:35.1]} 16...
Rfe8 {[%clk 0:02:17.9]} 17. Rad1 {[%clk 0:02:34.3]} 17... a6 {[%clk 0:02:15.5]}
18. Ne2 {[%clk 0:02:21.1]} 18... Bc6 {[%clk 0:02:01.9]} 19. Bd4 {[%clk 0:02:19]}
19... Qe6 {[%clk 0:01:59.1]} 20. Qd2 {[%clk 0:02:16.8]} 20... Qf5 {[%clk
0:01:55.4]} 21. Nc1 {[%clk 0:02:11]} 21... Re6 {[%clk 0:01:36.3]} 22. Rxe6
{[%clk 0:02:03.2]} 22... fxe6 {[%clk 0:01:37.2]} 23. Re1 {[%clk 0:01:58.1]}
23... e5 {[%clk 0:01:36.3]} 24. Bb6 {[%clk 0:01:56.4]} 24... Rf8 {[%clk
0:01:28.9]} 25. Ne2 {[%clk 0:01:49.1]} 25... Qg6 {[%clk 0:01:13.7]} 26. Ng3
{[%clk 0:01:46.4]} 26... e4 {[%clk 0:00:38.8]} 27. Nf1 {[%clk 0:01:36.3]} 27...
Bf4 {[%clk 0:00:33.2]} 28. Be3 {[%clk 0:01:35.6]} 28... Bc7 {[%clk 0:00:32.1]}
29. Bc5 {[%clk 0:01:34.9]} 29... Rf7 {[%clk 0:00:29.3]} 30. Ne3 {[%clk
0:01:30.8]} 30... Rd7 {[%clk 0:00:25.8]} 31. Nc2 {[%clk 0:01:26.1]} 31... Qf7
{[%clk 0:00:24.1]} 32. Qe3 {[%clk 0:01:21.8]} 32... Bf4 {[%clk 0:00:21.6]} 33.
Qd4 {[%clk 0:01:22]} 33... Qe6 {[%clk 0:00:16]} 34. a4 {[%clk 0:01:17.9]} 34...
Be5 {[%clk 0:00:16]} 35. Qb4 {[%clk 0:01:17.8]} 35... Rf7 {[%clk 0:00:15.2]} 36.
a5 {[%clk 0:01:15.5]} 36... g5 {[%clk 0:00:15.3]} 37. Ne3 {[%clk 0:01:13.1]}
37... h5 {[%clk 0:00:13.3]} 38. Qb6 {[%clk 0:01:08.5]} 38... Bc7 {[%clk
0:00:08.9]} 39. Qb4 {[%clk 0:01:05.5]} 39... g4 {[%clk 0:00:08.9]} 40. hxg4
{[%clk 0:01:04.4]} 40... hxg4 {[%clk 0:00:09.8]} 41. g3 {[%clk 0:01:01.2]} 41...
Be5 {[%clk 0:00:05.9]} 42. Bd4 {[%clk 0:01:00]} 42... Bd6 {[%clk 0:00:03.5]} 43.
Qb6 {[%clk 0:00:58.3]} 43... Bc7 {[%clk 0:00:03.1]} 44. Qa7 {[%clk 0:00:58.2]}
44... Qg6 {[%clk 0:00:01.9]} 45. Kg2 {[%clk 0:00:52]} 45... Qh5 {[%clk
0:00:01.9]} 46. Rh1 {[%clk 0:00:51.6]} 46... Rxf2+ {[%clk 0:00:01.7]} 47. Kxf2
{[%clk 0:00:52.1]} 47... Qxh1 {[%clk 0:00:02.2]} 48. Qa8+ {[%clk 0:00:52.1]}
48... Kf7 {[%clk 0:00:02.7]} 49. Ke2 {[%clk 0:00:50.7]} 49... Qf3+ {[%clk
0:00:02.9]} 50. Kd2 {[%clk 0:00:50.8]} 50... Qf2+ {[%clk 0:00:03.4]} 51. Kc1
{[%clk 0:00:50.5]} 51... Qxg3 {[%clk 0:00:04.3]} 52. Qh8 {[%clk 0:00:49.6]}
52... Qe1+ {[%clk 0:00:04.8]} 53. Kc2 {[%clk 0:00:49.2]} 53... Qe2+ {[%clk
0:00:05]} 54. Kb1 {[%clk 0:00:47.4]} 54... Qe1+ {[%clk 0:00:04.5]} 55. Ka2
{[%clk 0:00:46.5]} 55... Ke6 {[%clk 0:00:03.5]} 56. Qf6+ {[%clk 0:00:45.7]}
56... Kd7 {[%clk 0:00:04]} 57. Nf5 {[%clk 0:00:45.7]} 57... Qe2 {[%clk
0:00:02.9]} 58. Qe7+ {[%clk 0:00:39.9]} 58... Kc8 {[%clk 0:00:03.2]} 59. Qf8+
{[%clk 0:00:39.9]} 59... Kd7 {[%clk 0:00:02.6]} 60. Qf7+ {[%clk 0:00:38.3]}
60... Kc8 {[%clk 0:00:03]} 61. Ne7+ {[%clk 0:00:38.6]} 61... Kb8 {[%clk
0:00:03.2]} 62. Qf8+ {[%clk 0:00:38]} 1-0

[Event "*** Titled Tuesday Blitz"]
[Site "Chess.com"]
[Date "2020.05.19"]
[Round "1"]
[White "colonelcassad"]
[Black "RovenVogel"]
[Result "1-0"]
[WhiteElo "2432"]
[BlackElo "2730"]
[TimeControl "180+1"]
[EndTime "12:08:13 PDT"]
[Termination "colonelcassad won by resignation"]

1. d4 {[%clk 0:02:56.1]} 1... Nf6 {[%clk 0:02:40]} 2. Nf3 {[%clk 0:02:55.9]}
2... g6 {[%clk 0:02:34.2]} 3. Bf4 {[%clk 0:02:56.2]} 3... Bg7 {[%clk 0:02:33.5]}
4. e3 {[%clk 0:02:56.8]} 4... O-O {[%clk 0:02:33]} 5. h3 {[%clk 0:02:57.4]} 5...
c5 {[%clk 0:02:31.2]} 6. c3 {[%clk 0:02:56.8]} 6... d6 {[%clk 0:02:30.3]} 7. Be2
{[%clk 0:02:57.3]} 7... Qb6 {[%clk 0:02:28.1]} 8. Qb3 {[%clk 0:02:56.8]} 8...
Be6 {[%clk 0:02:27.6]} 9. Qxb6 {[%clk 0:02:55.9]} 9... axb6 {[%clk 0:02:28.5]}
10. a3 {[%clk 0:02:56.2]} 10... Nc6 {[%clk 0:02:21.8]} 11. Nbd2 {[%clk
0:02:54.5]} 11... Nd5 {[%clk 0:01:48]} 12. Bh2 {[%clk 0:02:54.2]} 12... Nc7
{[%clk 0:01:47.7]} 13. O-O {[%clk 0:02:51.9]} 13... Rfc8 {[%clk 0:01:46.8]} 14.
Rfd1 {[%clk 0:02:46.5]} 14... b5 {[%clk 0:01:45.6]} 15. dxc5 {[%clk 0:02:38.2]}
15... dxc5 {[%clk 0:01:45]} 16. Bxc7 {[%clk 0:02:38.2]} 16... Rxc7 {[%clk
0:01:45.9]} 17. Bxb5 {[%clk 0:02:38.2]} 17... Na5 {[%clk 0:01:43]} 18. a4 {[%clk
0:02:21.5]} 18... Nb3 {[%clk 0:01:39.3]} 19. Nxb3 {[%clk 0:02:18.8]} 19... Bxb3
{[%clk 0:01:38.8]} 20. Rd2 {[%clk 0:02:17.6]} 20... b6 {[%clk 0:01:38.7]} 21.
Ne1 {[%clk 0:02:07.1]} 21... Rca7 {[%clk 0:01:36]} 22. Bc6 {[%clk 0:01:57.3]}
22... Rc8 {[%clk 0:01:33.7]} 23. Bb5 {[%clk 0:01:57.2]} 23... Rca8 {[%clk
0:01:33.5]} 24. Bc6 {[%clk 0:01:57.4]} 24... Rc8 {[%clk 0:01:33.3]} 25. Bb5
{[%clk 0:01:57.7]} 25... Ra5 {[%clk 0:01:16.1]} 26. Rd7 {[%clk 0:01:50]} 26...
Bf6 {[%clk 0:01:13.5]} 27. Rb7 {[%clk 0:01:45.6]} 27... Rd8 {[%clk 0:01:03.9]}
28. Rxb6 {[%clk 0:01:28.1]} 28... Rd2 {[%clk 0:01:03.1]} 29. Nd3 {[%clk
0:01:27.1]} 29... c4 {[%clk 0:00:59.5]} 30. Nc5 {[%clk 0:01:12.6]} 30... Rxb2
{[%clk 0:00:58.6]} 31. Nb7 {[%clk 0:01:09.9]} 31... Ra8 {[%clk 0:00:54.9]} 32.
Bxc4 {[%clk 0:01:09.4]} 32... Bxc3 {[%clk 0:00:51.9]} 33. Bxb3 {[%clk
0:01:06.5]} 33... Rxb3 {[%clk 0:00:51.1]} 34. Rxb3 {[%clk 0:01:06.4]} 34... Bxa1
{[%clk 0:00:52]} 35. a5 {[%clk 0:01:06.4]} 35... Ra6 {[%clk 0:00:49.8]} 36. Rb5
{[%clk 0:01:04.8]} 36... Bc3 {[%clk 0:00:48.3]} 37. Kf1 {[%clk 0:01:05.4]} 37...
Kf8 {[%clk 0:00:46]} 38. Ke2 {[%clk 0:01:05.9]} 38... Ke8 {[%clk 0:00:46]} 39.
Kd3 {[%clk 0:01:06.5]} 39... Be1 {[%clk 0:00:45.8]} 40. f3 {[%clk 0:01:05.9]}
40... h5 {[%clk 0:00:44]} 41. Kc4 {[%clk 0:01:05.8]} 41... h4 {[%clk 0:00:42.9]}
42. Rb1 {[%clk 0:00:56.1]} 42... Bxa5 {[%clk 0:00:40.6]} 43. Ra1 {[%clk
0:00:56.3]} 43... Rc6+ {[%clk 0:00:40.4]} 44. Kd5 {[%clk 0:00:52.9]} 44... Rc2
{[%clk 0:00:36.9]} 45. Rxa5 {[%clk 0:00:50.2]} 45... Kf8 {[%clk 0:00:35]} 46.
Ra4 {[%clk 0:00:49.3]} 46... Rd2+ {[%clk 0:00:27.8]} 47. Ke5 {[%clk 0:00:47.5]}
47... g5 {[%clk 0:00:24.8]} 48. Rg4 {[%clk 0:00:46.2]} 48... Rb2 {[%clk
0:00:21.7]} 49. Nc5 {[%clk 0:00:45.2]} 49... Rb5 {[%clk 0:00:20.8]} 50. Kd5
{[%clk 0:00:41.3]} 50... f6 {[%clk 0:00:20.4]} 51. f4 {[%clk 0:00:39.8]} 51...
gxf4 {[%clk 0:00:18.1]} 52. exf4 {[%clk 0:00:39.9]} 52... Rb2 {[%clk 0:00:18.1]}
53. f5 {[%clk 0:00:37.3]} 53... Kf7 {[%clk 0:00:17.7]} 54. Ne6 {[%clk
0:00:37.2]} 54... Rd2+ {[%clk 0:00:16.6]} 55. Ke4 {[%clk 0:00:37.1]} 55... Ra2
{[%clk 0:00:13.5]} 56. Rg7+ {[%clk 0:00:35.5]} 56... Ke8 {[%clk 0:00:13.5]} 57.
Kf3 {[%clk 0:00:35.9]} 57... Ra3+ {[%clk 0:00:12.7]} 58. Kg4 {[%clk 0:00:36.2]}
58... Ra4+ {[%clk 0:00:12.8]} 59. Kh5 {[%clk 0:00:35]} 59... Ra2 {[%clk
0:00:11.2]} 60. Rg4 {[%clk 0:00:34.6]} 60... Rf2 {[%clk 0:00:10]} 61. Kxh4
{[%clk 0:00:34.9]} 61... Kd7 {[%clk 0:00:09.1]} 62. Ng7 {[%clk 0:00:31.7]} 62...
Kd6 {[%clk 0:00:08.5]} 63. Kh5 {[%clk 0:00:30.7]} 63... Ke5 {[%clk 0:00:08.2]}
64. h4 {[%clk 0:00:31.2]} 64... Rf1 {[%clk 0:00:07.7]} 65. Kg6 {[%clk
0:00:31.5]} 1-0

[Event "*** Titled Tuesday Blitz"]
[Site "Chess.com"]
[Date "2020.05.19"]
[Round "1"]
[White "temus_galaktionov"]
[Black "colegiodemadrid"]
[Result "1/2-1/2"]
[WhiteElo "2703"]
[BlackElo "2382"]
[TimeControl "180+1"]
[EndTime "12:08:14 PDT"]
[Termination "Game drawn by repetition"]

1. d4 {[%clk 0:02:57.9]} 1... d5 {[%clk 0:02:54.2]} 2. Nf3 {[%clk 0:02:58.8]}
2... e6 {[%clk 0:02:52.6]} 3. c4 {[%clk 0:02:57.3]} 3... Nf6 {[%clk 0:02:51.1]}
4. Nc3 {[%clk 0:02:57]} 4... Be7 {[%clk 0:02:50]} 5. Bf4 {[%clk 0:02:55.6]} 5...
O-O {[%clk 0:02:48]} 6. e3 {[%clk 0:02:55.2]} 6... b6 {[%clk 0:02:47.7]} 7. Bd3
{[%clk 0:02:50.2]} 7... dxc4 {[%clk 0:02:30.7]} 8. Bxc4 {[%clk 0:02:51.1]} 8...
Ba6 {[%clk 0:02:31.2]} 9. Bxa6 {[%clk 0:02:50]} 9... Nxa6 {[%clk 0:02:32.1]} 10.
O-O {[%clk 0:02:45]} 10... c5 {[%clk 0:02:30.5]} 11. Qa4 {[%clk 0:02:35.4]}
11... Nb4 {[%clk 0:02:15.9]} 12. Rfd1 {[%clk 0:02:34.1]} 12... cxd4 {[%clk
0:02:11.7]} 13. Rxd4 {[%clk 0:02:30]} 13... Nbd5 {[%clk 0:02:00]} 14. Nxd5
{[%clk 0:02:29.2]} 14... exd5 {[%clk 0:01:55.1]} 15. Rad1 {[%clk 0:02:27.6]}
15... Qe8 {[%clk 0:01:52.9]} 16. Qb3 {[%clk 0:02:17.9]} 16... Rc8 {[%clk
0:01:51.3]} 17. Bg5 {[%clk 0:02:16.2]} 17... h6 {[%clk 0:01:48.2]} 18. Bxf6
{[%clk 0:02:15.7]} 18... Bxf6 {[%clk 0:01:49.1]} 19. Rxd5 {[%clk 0:02:15.9]}
19... Qe4 {[%clk 0:01:46.4]} 20. h3 {[%clk 0:02:06.5]} 20... Qc2 {[%clk
0:01:43]} 21. Qxc2 {[%clk 0:01:57.8]} 21... Rxc2 {[%clk 0:01:43.9]} 22. R1d2
{[%clk 0:01:58.7]} 22... Rfc8 {[%clk 0:01:42.9]} 23. b3 {[%clk 0:01:58]} 23...
R8c7 {[%clk 0:01:35.6]} 24. g4 {[%clk 0:01:56.6]} 24... g6 {[%clk 0:01:14.2]}
25. Kg2 {[%clk 0:01:55.7]} 25... Kg7 {[%clk 0:01:14.3]} 26. Rxc2 {[%clk
0:01:52.1]} 26... Rxc2 {[%clk 0:01:13.5]} 27. Rd2 {[%clk 0:01:53]} 27... Rc7
{[%clk 0:01:10.7]} 28. Nd4 {[%clk 0:01:51.7]} 28... a6 {[%clk 0:01:08.5]} 29.
Kf3 {[%clk 0:01:51.1]} 29... b5 {[%clk 0:01:07.9]} 30. Ke4 {[%clk 0:01:49.4]}
30... Rc1 {[%clk 0:01:07.6]} 31. Nf3 {[%clk 0:01:34.6]} 31... b4 {[%clk
0:00:47.1]} 32. h4 {[%clk 0:01:14.6]} 32... Ra1 {[%clk 0:00:37.4]} 33. Rc2
{[%clk 0:00:58.2]} 33... Bc3 {[%clk 0:00:35.7]} 34. Nd4 {[%clk 0:00:55.8]} 34...
Rh1 {[%clk 0:00:24.7]} 35. Nf3 {[%clk 0:00:54.2]} 35... Ra1 {[%clk 0:00:24.2]}
36. Kd5 {[%clk 0:00:51.4]} 36... Rd1+ {[%clk 0:00:19.5]} 37. Kc5 {[%clk
0:00:50.4]} 37... a5 {[%clk 0:00:19.1]} 38. Kb5 {[%clk 0:00:45.3]} 38... Rd5+
{[%clk 0:00:18.1]} 39. Kc6 {[%clk 0:00:45.3]} 39... Rd1 {[%clk 0:00:16.9]} 40.
Re2 {[%clk 0:00:38.1]} 40... f5 {[%clk 0:00:15.5]} 41. gxf5 {[%clk 0:00:36.2]}
41... gxf5 {[%clk 0:00:16.4]} 42. e4 {[%clk 0:00:35.5]} 42... f4 {[%clk
0:00:16.7]} 43. Kb5 {[%clk 0:00:29.8]} 43... Rd3 {[%clk 0:00:16.8]} 44. Nh2
{[%clk 0:00:22.7]} 44... Rh3 {[%clk 0:00:16.7]} 45. f3 {[%clk 0:00:20.2]} 45...
Rxh4 {[%clk 0:00:16]} 46. Kxa5 {[%clk 0:00:19.7]} 46... Kf6 {[%clk 0:00:16.2]}
47. Ka4 {[%clk 0:00:19.3]} 47... Ke5 {[%clk 0:00:16.3]} 48. a3 {[%clk
0:00:14.6]} 48... Kd4 {[%clk 0:00:16.2]} 49. Rg2 {[%clk 0:00:12.4]} 49... bxa3
{[%clk 0:00:13.2]} 50. Kxa3 {[%clk 0:00:13.3]} 50... Rh5 {[%clk 0:00:12.5]} 51.
b4 {[%clk 0:00:12.9]} 51... Kc4 {[%clk 0:00:12.2]} 52. Rc2 {[%clk 0:00:10.2]}
52... Kd3 {[%clk 0:00:12.1]} 53. Rg2 {[%clk 0:00:08.8]} 53... Kc4 {[%clk
0:00:12.1]} 54. Rc2 {[%clk 0:00:07.4]} 54... Kd3 {[%clk 0:00:12]} 55. Ra2 {[%clk
0:00:06.8]} 55... Kc4 {[%clk 0:00:10.5]} 56. Rc2 {[%clk 0:00:04.8]} 1/2-1/2

[Event "*** Titled Tuesday Blitz"]
[Site "Chess.com"]
[Date "2020.05.19"]
[Round "1"]
[White "RobPeresian"]
[Black "Chess_Boxer123"]
[Result "0-1"]
[WhiteElo "2277"]
[BlackElo "2572"]
[TimeControl "180+1"]
[EndTime "12:08:14 PDT"]
[Termination "Chess_Boxer123 won on time"]

1. Nf3 {[%clk 0:03:00.9]} 1... d5 {[%clk 0:02:58.7]} 2. d4 {[%clk 0:02:56.5]}
2... Nf6 {[%clk 0:02:58.6]} 3. c4 {[%clk 0:02:56.4]} 3... c6 {[%clk 0:02:58.3]}
4. Nc3 {[%clk 0:02:55.6]} 4... e6 {[%clk 0:02:57.9]} 5. Bg5 {[%clk 0:02:54.8]}
5... Nbd7 {[%clk 0:02:55.5]} 6. e3 {[%clk 0:02:54.5]} 6... Qa5 {[%clk
0:02:55.4]} 7. Nd2 {[%clk 0:02:53.3]} 7... Bb4 {[%clk 0:02:54]} 8. Qc2 {[%clk
0:02:53.3]} 8... O-O {[%clk 0:02:53.1]} 9. a3 {[%clk 0:02:51.9]} 9... Bxc3
{[%clk 0:02:52.8]} 10. Qxc3 {[%clk 0:02:50.5]} 10... Qxc3 {[%clk 0:02:52.8]} 11.
bxc3 {[%clk 0:02:51.4]} 11... c5 {[%clk 0:02:53.1]} 12. cxd5 {[%clk 0:02:43.1]}
12... exd5 {[%clk 0:02:52]} 13. Bd3 {[%clk 0:02:37]} 13... h6 {[%clk 0:02:44.9]}
14. Bf4 {[%clk 0:02:33.3]} 14... Re8 {[%clk 0:02:44.4]} 15. h3 {[%clk 0:02:29]}
15... b6 {[%clk 0:02:43]} 16. O-O {[%clk 0:02:26.1]} 16... c4 {[%clk 0:02:41.2]}
17. Bc2 {[%clk 0:02:24.6]} 17... Bb7 {[%clk 0:02:40.4]} 18. a4 {[%clk
0:02:21.9]} 18... Bc6 {[%clk 0:02:39]} 19. Rfb1 {[%clk 0:02:18.1]} 19... a5
{[%clk 0:02:27.6]} 20. Bc7 {[%clk 0:02:16.1]} 20... Ra6 {[%clk 0:02:27.7]} 21.
Re1 {[%clk 0:02:07.3]} 21... Rc8 {[%clk 0:02:17.2]} 22. Bh2 {[%clk 0:01:55]}
22... Kf8 {[%clk 0:01:59.6]} 23. f3 {[%clk 0:01:54.7]} 23... b5 {[%clk
0:01:58.1]} 24. axb5 {[%clk 0:01:54]} 24... Bxb5 {[%clk 0:01:58.4]} 25. Reb1
{[%clk 0:01:44]} 25... Bc6 {[%clk 0:01:57.9]} 26. Bd6+ {[%clk 0:01:35.7]} 26...
Kg8 {[%clk 0:01:56.9]} 27. Kf2 {[%clk 0:01:30.4]} 27... a4 {[%clk 0:01:44.1]}
28. Ba3 {[%clk 0:01:27.5]} 28... Ne8 {[%clk 0:01:40.2]} 29. Rb2 {[%clk
0:01:19.8]} 29... Nc7 {[%clk 0:01:32.1]} 30. Rab1 {[%clk 0:01:19.2]} 30... g6
{[%clk 0:01:26.3]} 31. e4 {[%clk 0:01:16.1]} 31... Kg7 {[%clk 0:01:20.3]} 32. e5
{[%clk 0:01:01.8]} 32... Ne6 {[%clk 0:01:15.3]} 33. g3 {[%clk 0:01:00.7]} 33...
h5 {[%clk 0:01:14.5]} 34. Ke3 {[%clk 0:00:59.3]} 34... f6 {[%clk 0:01:09.2]} 35.
f4 {[%clk 0:00:58.1]} 35... f5 {[%clk 0:01:08.4]} 36. h4 {[%clk 0:00:53.1]}
36... Kf7 {[%clk 0:01:08.4]} 37. Nf3 {[%clk 0:00:29.5]} 37... Raa8 {[%clk
0:00:56.5]} 38. Bd1 {[%clk 0:00:27.2]} 38... Rab8 {[%clk 0:00:53]} 39. Bd6
{[%clk 0:00:18.6]} 39... Rxb2 {[%clk 0:00:52.1]} 40. Rxb2 {[%clk 0:00:19]} 40...
Ra8 {[%clk 0:00:52.8]} 41. Ba3 {[%clk 0:00:18.6]} 41... Ke8 {[%clk 0:00:46.4]}
42. Ne1 {[%clk 0:00:18.6]} 42... Nc7 {[%clk 0:00:45.5]} 43. Bb4 {[%clk
0:00:13.9]} 43... Nb5 {[%clk 0:00:39.1]} 44. Nc2 {[%clk 0:00:12.8]} 44... Nf8
{[%clk 0:00:33.6]} 45. Kd2 {[%clk 0:00:12.4]} 45... Ne6 {[%clk 0:00:33.7]} 46.
Ra2 {[%clk 0:00:12.3]} 46... Nbc7 {[%clk 0:00:32.5]} 47. Bf3 {[%clk 0:00:11.4]}
47... Kd7 {[%clk 0:00:32.9]} 48. Ne3 {[%clk 0:00:11.6]} 48... Na6 {[%clk
0:00:32.6]} 49. Ba3 {[%clk 0:00:11.1]} 49... Nac7 {[%clk 0:00:32.3]} 50. Rb2
{[%clk 0:00:10.8]} 50... Nb5 {[%clk 0:00:31.8]} 51. Bb4 {[%clk 0:00:10.8]} 51...
a3 {[%clk 0:00:32.3]} 52. Ra2 {[%clk 0:00:11]} 52... Nec7 {[%clk 0:00:32.9]} 53.
Nc2 {[%clk 0:00:10.6]} 53... Ne6 {[%clk 0:00:28.9]} 54. Nxa3 {[%clk 0:00:09.5]}
54... Nbxd4 {[%clk 0:00:29.1]} 55. cxd4 {[%clk 0:00:09]} 55... Nxd4 {[%clk
0:00:30]} 56. Bd1 {[%clk 0:00:08]} 56... Nb5 {[%clk 0:00:26.7]} 57. Ra1 {[%clk
0:00:06.2]} 57... d4 {[%clk 0:00:26]} 58. Nc2 {[%clk 0:00:05.3]} 58... Rb8
{[%clk 0:00:17.7]} 59. Bc5 {[%clk 0:00:05.4]} 59... d3 {[%clk 0:00:15.9]} 0-1

[Event "*** Titled Tuesday Blitz"]
[Site "Chess.com"]
[Date "2020.05.19"]
[Round "1"]
[White "Belka1989"]
[Black "binbin239"]
[Result "0-1"]
[WhiteElo "2157"]
[BlackElo "2509"]
[TimeControl "180+1"]
[EndTime "12:08:15 PDT"]
[Termination "binbin239 won by checkmate"]

1. d4 {[%clk 0:02:59.9]} 1... Nf6 {[%clk 0:02:54.1]} 2. Nf3 {[%clk 0:03:00.3]}
2... g6 {[%clk 0:02:54.4]} 3. Bf4 {[%clk 0:03:00.8]} 3... Bg7 {[%clk 0:02:54.7]}
4. e3 {[%clk 0:03:01.5]} 4... O-O {[%clk 0:02:54.5]} 5. Be2 {[%clk 0:03:02.1]}
5... d5 {[%clk 0:02:54.9]} 6. O-O {[%clk 0:02:58.4]} 6... c5 {[%clk 0:02:55.3]}
7. c3 {[%clk 0:02:58.4]} 7... Nc6 {[%clk 0:02:52.9]} 8. Nbd2 {[%clk 0:02:47.8]}
8... Nd7 {[%clk 0:02:52.6]} 9. Qb3 {[%clk 0:02:30.6]} 9... e5 {[%clk 0:02:51]}
10. dxe5 {[%clk 0:02:31.5]} 10... Ndxe5 {[%clk 0:02:50.7]} 11. Nxe5 {[%clk
0:02:29.3]} 11... Nxe5 {[%clk 0:02:51]} 12. Rfd1 {[%clk 0:02:16.4]} 12... Nc6
{[%clk 0:02:44.6]} 13. Nf3 {[%clk 0:02:05.3]} 13... d4 {[%clk 0:02:15.8]} 14.
cxd4 {[%clk 0:01:41.4]} 14... cxd4 {[%clk 0:02:15.2]} 15. exd4 {[%clk
0:01:35.7]} 15... Qe7 {[%clk 0:02:02.9]} 16. Re1 {[%clk 0:01:03.3]} 16... Nxd4
{[%clk 0:01:54.7]} 17. Nxd4 {[%clk 0:00:58.2]} 17... Bxd4 {[%clk 0:01:54.9]} 18.
Bc4 {[%clk 0:00:51.9]} 18... Qf6 {[%clk 0:01:53.7]} 19. Bg3 {[%clk 0:00:34]}
19... Bf5 {[%clk 0:01:50]} 20. Rad1 {[%clk 0:00:32.4]} 20... b6 {[%clk 0:01:45]}
21. h3 {[%clk 0:00:24.2]} 21... Rad8 {[%clk 0:01:44.5]} 22. Bd5 {[%clk
0:00:09.7]} 22... Bxb2 {[%clk 0:01:40]} 23. Re2 {[%clk 0:00:03.7]} 23... Bd4
{[%clk 0:01:39.1]} 24. Red2 {[%clk 0:00:04.1]} 24... Be5 {[%clk 0:01:38.3]} 25.
Bxf7+ {[%clk 0:00:04.4]} 25... Rxf7 {[%clk 0:01:29.5]} 26. Rxd8+ {[%clk
0:00:04.1]} 26... Kg7 {[%clk 0:01:29.9]} 27. Bxe5 {[%clk 0:00:04.1]} 27... Qxe5
{[%clk 0:01:30]} 28. R8d6 {[%clk 0:00:04.5]} 28... Be4 {[%clk 0:01:21]} 29. Qe3
{[%clk 0:00:04.3]} 29... Qf5 {[%clk 0:01:17.6]} 30. Qg3 {[%clk 0:00:03.9]} 30...
h5 {[%clk 0:01:12.4]} 31. Qc3+ {[%clk 0:00:04.5]} 31... Kh7 {[%clk 0:01:12.1]}
32. Qe3 {[%clk 0:00:04.9]} 32... Bc2 {[%clk 0:01:09.2]} 33. R1d2 {[%clk
0:00:04.8]} 33... Ba4 {[%clk 0:01:07.4]} 34. Qg3 {[%clk 0:00:05]} 34... Be8
{[%clk 0:01:04.6]} 35. R2d5 {[%clk 0:00:05.1]} 35... Qb1+ {[%clk 0:01:03.5]} 36.
Kh2 {[%clk 0:00:05.7]} 36... Rg7 {[%clk 0:01:03.4]} 37. Rd1 {[%clk 0:00:05.8]}
37... Qxa2 {[%clk 0:01:03.5]} 38. R1d2 {[%clk 0:00:06.3]} 38... Qc4 {[%clk
0:01:03.5]} 39. Rd8 {[%clk 0:00:07]} 39... Bf7 {[%clk 0:01:03.3]} 40. Qd6 {[%clk
0:00:06.8]} 40... a5 {[%clk 0:01:01.9]} 41. Qf8 {[%clk 0:00:07.1]} 41... Bg8
{[%clk 0:01:01.8]} 42. Qf3 {[%clk 0:00:06]} 42... a4 {[%clk 0:01:01.2]} 43. Qd3
{[%clk 0:00:06.3]} 43... Qf4+ {[%clk 0:01:01.1]} 44. Qg3 {[%clk 0:00:05.8]}
44... Qf6 {[%clk 0:01:00.8]} 45. R8d6 {[%clk 0:00:04.2]} 45... Qf5 {[%clk
0:00:56.4]} 46. Rxb6 {[%clk 0:00:04.5]} 46... a3 {[%clk 0:00:55.3]} 47. Rd1
{[%clk 0:00:03.3]} 47... a2 {[%clk 0:00:55.4]} 48. Ra1 {[%clk 0:00:03.6]} 48...
Bd5 {[%clk 0:00:51.4]} 49. Rb2 {[%clk 0:00:02.2]} 49... Rf7 {[%clk 0:00:50.9]}
50. Rbxa2 {[%clk 0:00:02]} 50... Bxa2 {[%clk 0:00:50.9]} 51. Rxa2 {[%clk
0:00:02.9]} 51... Qf6 {[%clk 0:00:51.2]} 52. Ra3 {[%clk 0:00:03.5]} 52... h4
{[%clk 0:00:51.2]} 53. Rf3 {[%clk 0:00:04.4]} 53... hxg3+ {[%clk 0:00:51.3]} 54.
Kxg3 {[%clk 0:00:04.2]} 54... Qg5+ {[%clk 0:00:51.5]} 55. Kh2 {[%clk 0:00:04.6]}
55... Rxf3 {[%clk 0:00:51.9]} 56. gxf3 {[%clk 0:00:05.3]} 56... Qf4+ {[%clk
0:00:52.5]} 57. Kg2 {[%clk 0:00:05.7]} 57... Kh6 {[%clk 0:00:53]} 58. h4 {[%clk
0:00:05.4]} 58... Kh5 {[%clk 0:00:53.5]} 59. Kh3 {[%clk 0:00:06.1]} 59... Qxh4+
{[%clk 0:00:53.9]} 60. Kg2 {[%clk 0:00:06.8]} 60... Qg5+ {[%clk 0:00:54.4]} 61.
Kf1 {[%clk 0:00:06.8]} 61... Qf4 {[%clk 0:00:55]} 62. Kg2 {[%clk 0:00:06.4]}
62... Kh4 {[%clk 0:00:55.6]} 63. Kf1 {[%clk 0:00:06.6]} 63... Qxf3 {[%clk
0:00:55.1]} 64. Kg1 {[%clk 0:00:07]} 64... g5 {[%clk 0:00:55.6]} 65. Kf1 {[%clk
0:00:07.6]} 65... g4 {[%clk 0:00:56.2]} 66. Kg1 {[%clk 0:00:08.4]} 66... g3
{[%clk 0:00:56.6]} 67. fxg3+ {[%clk 0:00:09.2]} 67... Qxg3+ {[%clk 0:00:56.7]}
68. Kf1 {[%clk 0:00:09.7]} 68... Qh2 {[%clk 0:00:57.2]} 69. Ke1 {[%clk
0:00:09.5]} 69... Kg3 {[%clk 0:00:57.7]} 70. Kf1 {[%clk 0:00:10]} 70... Qf2#
{[%clk 0:00:57.8]} 0-1